[Event "16th EWICC 2015"]
[Site "Kutaisi"]
[Date "2015.06.01"]
[Round "4"]
[White "Zaksaite, Salomeja"]
[Black "Tedoshvili, Ana"]
[Result "1-0"]
[ECO "C11"]
[WhiteElo "2203"]
[BlackElo "1805"]
[Annotator "Robot 11"]
[PlyCount "45"]
[EventDate "2015.??.??"]
[EventCountry "GEO"]
[TimeControl "900+10"]

1. e4 {[%emt 0:00:01]} e6 {[%emt 0:00:02]} 2. d4 {[%emt 0:00:03]} d5 {[%emt 0:
00:01]} 3. Nc3 {[%emt 0:00:11]} Nf6 {[%emt 0:00:02]} 4. Bd3 {[%emt 0:01:07]}
Bb4 {[%emt 0:00:58]} 5. e5 {[%emt 0:00:06]} Nfd7 {[%emt 0:00:03]} 6. Qg4 {
[%emt 0:00:22]} g6 {[%emt 0:00:22]} 7. Bg5 {[%emt 0:00:32]} Be7 {[%emt 0:00:12]
} 8. h4 {[%emt 0:00:01]} h5 {[%emt 0:00:08]} 9. Qg3 {[%emt 0:00:16]} c5 {[%emt
0:00:09]} 10. Bxe7 {[%emt 0:00:31]} Kxe7 {[%emt 0:00:28]} 11. Nb5 {[%emt 0:00:
36]} Kf8 {[%emt 0:00:48]} 12. Nd6 {[%emt 0:01:00]} Kg7 {[%emt 0:00:03]} 13. Nf3
{[%emt 0:01:05]} cxd4 {[%emt 0:00:43]} 14. Nxf7 {[%emt 0:00:32]} Kxf7 {[%emt 0:
01:48]} 15. Bxg6+ {[%emt 0:00:41]} Kf8 {[%emt 0:00:33]} 16. Qf4+ {[%emt 0:03:
42]} Kg7 {[%emt 0:00:11]} 17. Qf7+ {[%emt 0:00:08]} Kh6 {[%emt 0:00:07]} 18.
Bd3 {[%emt 0:00:16]} Qg8 {[%emt 0:01:49]} 19. Qf4+ {[%emt 0:00:28]} Kg7 {[%emt
0:00:10]} 20. Rh3 {[%emt 0:00:15]} Qf7 {[%emt 0:02:14]} 21. Qg5+ {[%emt 0:00:
11]} Kf8 {[%emt 0:00:01]} 22. Nxd4 {[%emt 0:00:07]} Ke8 {[%emt 0:00:22]} 23.
Bg6 {[%emt 0:00:14]} 1-0

[Event "16th EWICC 2015"]
[Site "Kutaisi"]
[Date "2015.06.02"]
[Round "5"]
[White "Arabidze, Meri"]
[Black "Kosteniuk, Alexandra"]
[Result "0-1"]
[ECO "A28"]
[WhiteElo "2403"]
[BlackElo "2530"]
[Annotator "Robot 11"]
[PlyCount "64"]
[EventDate "2015.??.??"]
[EventCountry "GEO"]
[TimeControl "900+10"]

1. c4 {[%emt 0:00:02]} Nf6 {[%emt 0:00:05]} 2. Nc3 {[%emt 0:00:03]} e5 {[%emt
0:00:03]} 3. Nf3 {[%emt 0:00:07]} Nc6 {[%emt 0:00:03]} 4. e3 {[%emt 0:00:04]}
Bb4 {[%emt 0:00:47]} 5. Qc2 {[%emt 0:00:02]} O-O {[%emt 0:00:11]} 6. Nd5 {
[%emt 0:00:05]} Re8 {[%emt 0:01:14]} 7. Qf5 {[%emt 0:00:05]} d6 {[%emt 0:04:48]
} 8. Nxf6+ {[%emt 0:00:02]} gxf6 {[%emt 0:00:02]} 9. Qc2 {[%emt 0:01:17]} e4 {
[%emt 0:00:09]} 10. Ng1 {[%emt 0:00:43]} d5 {[%emt 0:00:11]} 11. a3 {[%emt 0:
02:10]} Bf8 {[%emt 0:00:24]} 12. cxd5 {[%emt 0:00:09]} Qxd5 {[%emt 0:00:04]}
13. Bc4 {[%emt 0:01:44]} Qg5 {[%emt 0:00:28]} 14. Ne2 {[%emt 0:00:01]} Ne5 {
[%emt 0:00:15]} 15. Ng3 {[%emt 0:03:36]} f5 {[%emt 0:00:16]} 16. d4 {[%emt 0:
03:31]} exd3 {[%emt 0:00:53]} 17. Bxd3 {[%emt 0:00:01]} Nxd3+ {[%emt 0:00:02]}
18. Qxd3 {[%emt 0:00:01]} f4 {[%emt 0:00:00]} 19. Ne2 {[%emt 0:00:08]} Bf5 {
[%emt 0:01:14]} 20. Qb3 {[%emt 0:01:10]} Rad8 {[%emt 0:00:12]} 21. Bd2 {[%emt
0:01:28]} Bc5 {[%emt 0:02:47]} 22. h4 {[%emt 0:01:21]} Qh6 {[%emt 0:00:26]} 23.
Bb4 {[%emt 0:00:46]} Bb6 {[%emt 0:00:43]} 24. O-O {[%emt 0:00:11]} fxe3 {[%emt
0:00:05]} 25. f3 {[%emt 0:00:04]} Qxh4 {[%emt 0:00:24]} 26. Rac1 {[%emt 0:00:
00]} Bd3 {[%emt 0:00:15]} 27. Be1 {[%emt 0:00:20]} Qh6 {[%emt 0:00:27]} 28. Rc2
{[%emt 0:00:09]} Bxc2 {[%emt 0:00:14]} 29. Qxc2 {[%emt 0:00:01]} Rd2 {[%emt 0:
00:24]} 30. Qc4 {[%emt 0:00:01]} Qe6 {[%emt 0:00:05]} 31. Qb5 {[%emt 0:00:04]}
c6 {[%emt 0:00:03]} 32. Qg5+ {[%emt 0:00:34]} Qg6 {[%emt 0:00:01]} 0-1

[Event "16th EWICC 2015"]
[Site "Kutaisi"]
[Date "2015.06.02"]
[Round "5"]
[White "Batsiashvili, Nino"]
[Black "Khomeriki, Nino"]
[Result "1-0"]
[ECO "A56"]
[WhiteElo "2473"]
[BlackElo "2228"]
[Annotator "Robot 11"]
[PlyCount "123"]
[EventDate "2015.??.??"]
[EventCountry "GEO"]
[TimeControl "900+10"]

1. d4 {[%emt 0:00:01]} Nf6 {[%emt 0:00:02]} 2. c4 {[%emt 0:00:02]} c5 {[%emt 0:
00:02]} 3. Nf3 {[%emt 0:00:05]} cxd4 {[%emt 0:01:22]} 4. Nxd4 {[%emt 0:00:02]}
e5 {[%emt 0:00:08]} 5. Nb5 {[%emt 0:00:42]} d5 {[%emt 0:00:09]} 6. cxd5 {[%emt
0:00:10]} Bc5 {[%emt 0:00:11]} 7. e3 {[%emt 0:00:20]} O-O {[%emt 0:00:14]} 8.
N5c3 {[%emt 0:00:19]} e4 {[%emt 0:00:29]} 9. Nd2 {[%emt 0:00:10]} Re8 {[%emt 0:
00:29]} 10. a3 {[%emt 0:00:36]} Bf5 {[%emt 0:00:42]} 11. Nb3 {[%emt 0:00:42]}
Bd6 {[%emt 0:00:30]} 12. Be2 {[%emt 0:00:07]} Nbd7 {[%emt 0:00:16]} 13. Nd4 {
[%emt 0:02:58]} Bg6 {[%emt 0:00:04]} 14. O-O {[%emt 0:00:39]} Nb6 {[%emt 0:03:
45]} 15. Ndb5 {[%emt 0:02:32]} Nfxd5 {[%emt 0:05:16]} 16. Nxd5 {[%emt 0:00:21]}
Nxd5 {[%emt 0:00:02]} 17. Nxd6 {[%emt 0:02:28]} Qxd6 {[%emt 0:00:01]} 18. Qb3 {
[%emt 0:00:59]} b6 {[%emt 0:03:22]} 19. Rd1 {[%emt 0:00:10]} Rad8 {[%emt 0:00:
23]} 20. Bd2 {[%emt 0:00:01]} Qe5 {[%emt 0:00:02]} 21. Be1 {[%emt 0:00:21]} Bh5
{[%emt 0:00:08]} 22. Bxh5 {[%emt 0:00:41]} Qxh5 {[%emt 0:00:01]} 23. Rd4 {
[%emt 0:00:08]} Nf6 {[%emt 0:00:25]} 24. Rad1 {[%emt 0:00:31]} Rxd4 {[%emt 0:
00:02]} 25. Rxd4 {[%emt 0:00:01]} Rc8 {[%emt 0:00:25]} 26. Bc3 {[%emt 0:00:38]}
h6 {[%emt 0:00:12]} 27. Qd1 {[%emt 0:00:05]} Qf5 {[%emt 0:00:32]} 28. h3 {
[%emt 0:00:05]} Kh7 {[%emt 0:00:01]} 29. Rd6 {[%emt 0:00:17]} Ne8 {[%emt 0:00:
21]} 30. Rd7 {[%emt 0:00:07]} Rc6 {[%emt 0:00:09]} 31. Rd8 {[%emt 0:00:22]} Nc7
{[%emt 0:00:03]} 32. Qd7 {[%emt 0:00:12]} Qe6 {[%emt 0:00:19]} 33. Qxe6 {[%emt
0:00:11]} Rxe6 {[%emt 0:00:06]} 34. Rd7 {[%emt 0:00:05]} Nb5 {[%emt 0:00:02]}
35. Rxf7 {[%emt 0:00:15]} Nxc3 {[%emt 0:00:02]} 36. bxc3 {[%emt 0:00:01]} a5 {
[%emt 0:00:23]} 37. Rb7 {[%emt 0:00:13]} Rc6 {[%emt 0:00:12]} 38. c4 {[%emt 0:
00:20]} Rxc4 {[%emt 0:00:11]} 39. Rxb6 {[%emt 0:00:01]} Rc3 {[%emt 0:00:01]}
40. Re6 {[%emt 0:00:01]} Rxa3 {[%emt 0:00:04]} 41. Rxe4 {[%emt 0:00:02]} Kg6 {
[%emt 0:00:08]} 42. Re7 {[%emt 0:00:14]} Kf6 {[%emt 0:00:09]} 43. Ra7 {[%emt 0:
00:02]} Ra2 {[%emt 0:00:02]} 44. f3 {[%emt 0:00:06]} a4 {[%emt 0:00:38]} 45.
Kh2 {[%emt 0:00:07]} Ra3 {[%emt 0:00:05]} 46. e4 {[%emt 0:00:03]} Ra2 {[%emt 0:
00:08]} 47. Kg3 {[%emt 0:00:14]} g6 {[%emt 0:00:17]} 48. f4 {[%emt 0:00:18]}
Ra3+ {[%emt 0:00:10]} 49. Kg4 {[%emt 0:00:02]} Ra2 {[%emt 0:00:08]} 50. Ra6+ {
[%emt 0:00:03]} Kf7 {[%emt 0:00:01]} 51. g3 {[%emt 0:00:09]} Ra3 {[%emt 0:00:
02]} 52. e5 {[%emt 0:00:15]} Ra1 {[%emt 0:00:12]} 53. Kh4 {[%emt 0:00:18]} a3
54. g4 {[%emt 0:00:46]} a2 {[%emt 0:00:15]} 55. f5 {[%emt 0:00:16]} g5+ {[%emt
0:00:07]} 56. Kh5 {[%emt 0:00:01]} Rh1 {[%emt 0:00:28]} 57. Ra7+ {[%emt 0:00:
03]} Ke8 {[%emt 0:00:10]} 58. Rxa2 {[%emt 0:00:02]} Rxh3+ {[%emt 0:00:02]} 59.
Kg6 {[%emt 0:00:01]} Rh4 {[%emt 0:00:27]} 60. f6 {[%emt 0:00:07]} Rxg4 {[%emt
0:00:08]} 61. f7+ {[%emt 0:00:02]} Ke7 {[%emt 0:00:03]} 62. Ra7+ {[%emt 0:00:
01]} 1-0

[Event "16th EWICC 2015"]
[Site "Kutaisi"]
[Date "2015.06.02"]
[Round "5"]
[White "Charkhalashvili, Inga"]
[Black "Schleining, Zoya"]
[Result "0-1"]
[ECO "A41"]
[WhiteElo "2318"]
[BlackElo "2375"]
[Annotator "Robot 11"]
[PlyCount "126"]
[EventDate "2015.??.??"]
[EventCountry "GEO"]
[TimeControl "900+10"]

1. d4 {[%emt 0:00:02]} d6 {[%emt 0:00:01]} 2. c4 {[%emt 0:00:04]} e5 {[%emt 0:
00:04]} 3. e3 {[%emt 0:00:31]} Nf6 {[%emt 0:00:29]} 4. Nc3 {[%emt 0:00:02]}
Nbd7 {[%emt 0:00:22]} 5. Nf3 {[%emt 0:00:08]} g6 {[%emt 0:00:08]} 6. Be2 {
[%emt 0:00:13]} Bg7 {[%emt 0:00:04]} 7. b4 {[%emt 0:00:23]} a5 {[%emt 0:00:39]}
8. b5 {[%emt 0:00:20]} O-O {[%emt 0:00:12]} 9. Ba3 {[%emt 0:00:16]} Re8 {[%emt
0:00:52]} 10. O-O {[%emt 0:00:07]} exd4 {[%emt 0:01:49]} 11. Nxd4 {[%emt 0:00:
23]} Nc5 {[%emt 0:00:18]} 12. Bf3 {[%emt 0:00:12]} Nce4 {[%emt 0:00:51]} 13.
Nxe4 {[%emt 0:00:27]} Nxe4 {[%emt 0:00:02]} 14. Rc1 {[%emt 0:00:02]} Bd7 {
[%emt 0:01:49]} 15. Qc2 {[%emt 0:00:25]} Qe7 {[%emt 0:01:02]} 16. Rfd1 {[%emt
0:00:15]} b6 {[%emt 0:00:09]} 17. Bb2 {[%emt 0:00:25]} Rac8 {[%emt 0:00:16]}
18. Qe2 {[%emt 0:01:28]} f5 {[%emt 0:00:51]} 19. g3 {[%emt 0:00:06]} Bf6 {
[%emt 0:00:17]} 20. Bg2 {[%emt 0:00:18]} Qg7 {[%emt 0:00:03]} 21. Ba1 {[%emt 0:
01:07]} Re7 {[%emt 0:00:04]} 22. Qc2 {[%emt 0:01:15]} Rce8 {[%emt 0:00:03]} 23.
Ne2 {[%emt 0:01:24]} Bxa1 {[%emt 0:00:35]} 24. Rxa1 {[%emt 0:00:20]} g5 {[%emt
0:00:58]} 25. Qd3 {[%emt 0:02:28]} Re5 {[%emt 0:00:33]} 26. Qd4 {[%emt 0:00:53]
} h6 {[%emt 0:00:14]} 27. Rac1 {[%emt 0:00:05]} Be6 {[%emt 0:00:14]} 28. f4 {
[%emt 0:00:45]} Rc5 {[%emt 0:00:15]} 29. Bxe4 {[%emt 0:01:46]} fxe4 {[%emt 0:
00:03]} 30. Qxe4 {[%emt 0:00:14]} Qf7 {[%emt 0:00:48]} 31. fxg5 {[%emt 0:00:43]
} Bxc4 {[%emt 0:00:36]} 32. Qg4 {[%emt 0:00:30]} h5 {[%emt 0:00:33]} 33. g6 {
[%emt 0:00:14]} Qe7 {[%emt 0:00:40]} 34. Qf3 {[%emt 0:00:09]} Qxe3+ {[%emt 0:
00:19]} 35. Qxe3 {[%emt 0:00:01]} Rxe3 {[%emt 0:00:01]} 36. Nd4 {[%emt 0:00:09]
} Bxa2 {[%emt 0:00:39]} 37. Rxc5 {[%emt 0:00:05]} bxc5 {[%emt 0:00:02]} 38. Nf5
{[%emt 0:00:01]} Rf3 {[%emt 0:00:31]} 39. Ne7+ {[%emt 0:00:07]} Kg7 {[%emt 0:
00:10]} 40. Ra1 {[%emt 0:00:13]} Be6 {[%emt 0:00:15]} 41. Kg2 {[%emt 0:00:07]}
Re3 {[%emt 0:00:11]} 42. Kf2 {[%emt 0:00:06]} Re5 {[%emt 0:00:15]} 43. Rxa5 {
[%emt 0:00:06]} Bc4 {[%emt 0:00:04]} 44. Nc6 {[%emt 0:00:05]} Re2+ {[%emt 0:00:
12]} 45. Kg1 {[%emt 0:00:15]} Kxg6 {[%emt 0:00:06]} 46. Ra7 {[%emt 0:00:03]}
Bxb5 {[%emt 0:00:03]} 47. Nd8 {[%emt 0:00:16]} Re8 {[%emt 0:00:10]} 48. Nb7 {
[%emt 0:00:03]} Rf8 {[%emt 0:00:20]} 49. Ra1 {[%emt 0:00:14]} Bc6 {[%emt 0:00:
09]} 50. Na5 {[%emt 0:00:01]} Ra8 {[%emt 0:00:05]} 51. Kf2 {[%emt 0:00:01]} Bd5
{[%emt 0:00:06]} 52. Ke3 {[%emt 0:00:03]} Bf7 {[%emt 0:00:03]} 53. Kd3 {[%emt
0:00:14]} d5 {[%emt 0:00:06]} 54. Nb3 {[%emt 0:00:35]} Rxa1 {[%emt 0:00:23]}
55. Nxa1 {[%emt 0:00:01]} Kf6 {[%emt 0:00:07]} 56. Kc3 {[%emt 0:00:14]} Ke5 {
[%emt 0:00:14]} 57. Nc2 {[%emt 0:00:02]} d4+ {[%emt 0:00:02]} 58. Kd2 {[%emt 0:
00:01]} c4 {[%emt 0:00:12]} 59. Nb4 {[%emt 0:00:10]} c5 {[%emt 0:00:21]} 60.
Nc6+ {[%emt 0:00:02]} Kd6 {[%emt 0:00:05]} 61. Na5 {[%emt 0:00:03]} c3+ {[%emt
0:00:09]} 62. Kc2 {[%emt 0:00:21]} Bd5 {[%emt 0:00:02]} 63. Kd3 {[%emt 0:00:04]
} Ke5 {Kxd4+} 0-1

[Event "16th EWICC 2015"]
[Site "Kutaisi"]
[Date "2015.06.02"]
[Round "5"]
[White "Charochkina, Daria"]
[Black "Gvetadze, Sofio"]
[Result "1/2-1/2"]
[ECO "D34"]
[WhiteElo "2391"]
[BlackElo "2319"]
[Annotator "Robot 11"]
[PlyCount "194"]
[EventDate "2015.??.??"]
[EventCountry "GEO"]
[TimeControl "900+10"]

1. Nf3 {[%emt 0:00:02]} Nf6 {[%emt 0:00:04]} 2. g3 {[%emt 0:00:01]} d5 {[%emt
0:00:05]} 3. c4 {[%emt 0:00:04]} e6 {[%emt 0:00:02]} 4. Bg2 {[%emt 0:00:01]} c5
{[%emt 0:00:02]} 5. cxd5 {[%emt 0:00:05]} exd5 {[%emt 0:00:02]} 6. d4 {[%emt 0:
00:01]} Nc6 {[%emt 0:00:04]} 7. O-O {[%emt 0:00:15]} Be7 {[%emt 0:00:03]} 8.
Nc3 {[%emt 0:00:05]} O-O {[%emt 0:00:11]} 9. Bg5 {[%emt 0:00:19]} c4 {[%emt 0:
00:33]} 10. Ne5 {[%emt 0:03:17]} Be6 {[%emt 0:00:19]} 11. Qd2 {[%emt 0:00:04]}
Rc8 {[%emt 0:02:22]} 12. e3 {[%emt 0:01:00]} h6 {[%emt 0:00:12]} 13. Bxf6 {
[%emt 0:00:08]} Bxf6 {[%emt 0:00:02]} 14. f4 {[%emt 0:00:17]} Ne7 {[%emt 0:01:
08]} 15. e4 {[%emt 0:00:50]} dxe4 {[%emt 0:07:42]} 16. Nxe4 {[%emt 0:00:07]} b5
{[%emt 0:00:10]} 17. Rad1 {[%emt 0:02:15]} Qb6 {[%emt 0:00:39]} 18. Nc5 {[%emt
0:06:34]} Rcd8 {[%emt 0:00:15]} 19. Qf2 {[%emt 0:00:09]} Nf5 {[%emt 0:01:34]}
20. d5 {[%emt 0:00:16]} Bc8 {[%emt 0:00:04]} 21. Rfe1 {[%emt 0:00:34]} Nd6 {
[%emt 0:00:08]} 22. Bf3 {[%emt 0:00:49]} Rfe8 {[%emt 0:00:54]} 23. b4 {[%emt 0:
00:26]} cxb3 {[%emt 0:00:02]} 24. axb3 {[%emt 0:00:01]} a5 {[%emt 0:00:38]} 25.
Kg2 {[%emt 0:00:23]} Bf5 {[%emt 0:00:30]} 26. g4 {[%emt 0:00:17]} Bc8 {[%emt 0:
00:05]} 27. Nc6 {[%emt 0:00:10]} Rxe1 {[%emt 0:00:04]} 28. Rxe1 {[%emt 0:00:00]
} Re8 {[%emt 0:00:04]} 29. Rxe8+ {[%emt 0:00:03]} Nxe8 {[%emt 0:00:01]} 30. Qe3
{[%emt 0:00:01]} Nd6 {[%emt 0:00:19]} 31. g5 {[%emt 0:00:06]} hxg5 {[%emt 0:00:
06]} 32. fxg5 {[%emt 0:00:01]} Bxg5 {[%emt 0:00:18]} 33. Qxg5 {[%emt 0:00:38]}
Qxc5 {[%emt 0:00:01]} 34. Qd8+ {[%emt 0:00:20]} Kh7 {[%emt 0:00:07]} 35. Qh4+ {
[%emt 0:00:12]} Kg8 {[%emt 0:00:04]} 36. Ne7+ {[%emt 0:00:03]} Kf8 {[%emt 0:00:
01]} 37. Nxc8 {[%emt 0:00:01]} Qxc8 {[%emt 0:00:04]} 38. Qh8+ {[%emt 0:00:02]}
Ke7 {[%emt 0:00:01]} 39. Qxg7 {[%emt 0:00:01]} Qc2+ {[%emt 0:00:03]} 40. Kf1 {
[%emt 0:00:33]} Qc1+ {[%emt 0:00:17]} 41. Kf2 {[%emt 0:00:23]} Qd2+ {[%emt 0:
00:03]} 42. Kf1 {[%emt 0:00:05]} Qf4 {[%emt 0:00:06]} 43. Qc3 {[%emt 0:00:16]}
Ne4 {[%emt 0:00:35]} 44. d6+ {[%emt 0:00:01]} Nxd6 {[%emt 0:00:11]} 45. Kg2 {
[%emt 0:00:38]} Nf5 {[%emt 0:00:38]} 46. Qc5+ {[%emt 0:00:08]} Kf6 {[%emt 0:00:
04]} 47. Qc6+ {[%emt 0:00:13]} Kg7 {[%emt 0:00:17]} 48. Qc3+ {[%emt 0:00:16]}
Nd4 {[%emt 0:00:15]} 49. Ba8 {[%emt 0:00:17]} f6 {[%emt 0:00:23]} 50. Qxa5 {
[%emt 0:00:07]} Qg4+ {[%emt 0:00:11]} 51. Kf2 {[%emt 0:00:21]} Qe2+ {[%emt 0:
00:05]} 52. Kg3 {[%emt 0:00:01]} Nf5+ {[%emt 0:00:09]} 53. Kf4 {[%emt 0:00:01]}
Qe5+ {[%emt 0:00:15]} 54. Kf3 {[%emt 0:00:01]} Qxh2 {[%emt 0:00:21]} 55. Qa7+ {
[%emt 0:00:22]} Kh6 {[%emt 0:00:07]} 56. Qd7 {[%emt 0:00:19]} Qh1+ {[%emt 0:00:
39]} 57. Kf2 {[%emt 0:00:02]} Qxa8 {[%emt 0:00:27]} 58. Qxf5 {[%emt 0:00:01]}
Qa2+ {[%emt 0:00:01]} 59. Kg1 {[%emt 0:00:16]} Qa1+ {[%emt 0:00:01]} 60. Kf2 {
[%emt 0:00:09]} Qb2+ {[%emt 0:00:03]} 61. Kf1 {[%emt 0:00:13]} Qc1+ {[%emt 0:
00:07]} 62. Kf2 {[%emt 0:00:08]} Qd2+ {[%emt 0:00:22]} 63. Kf1 {[%emt 0:00:02]}
Qd1+ {[%emt 0:00:01]} 64. Kf2 {[%emt 0:00:02]} Qd4+ {[%emt 0:00:02]} 65. Kf1 {
[%emt 0:00:07]} Qe5 {[%emt 0:00:11]} 66. Qh3+ {[%emt 0:00:05]} Kg6 {[%emt 0:00:
02]} 67. Qg4+ {[%emt 0:00:27]} Qg5 {[%emt 0:00:03]} 68. Qb4 {[%emt 0:00:08]}
Qf5+ {[%emt 0:00:24]} 69. Kg2 {[%emt 0:00:04]} Kg5 {[%emt 0:00:17]} 70. Qd2+ {
[%emt 0:00:13]} Kh5 {[%emt 0:00:02]} 71. Qc3 {[%emt 0:00:29]} Qe4+ {[%emt 0:00:
05]} 72. Kf2 {[%emt 0:00:07]} Qf4+ {[%emt 0:00:37]} 73. Kg2 {[%emt 0:00:04]} b4
{[%emt 0:00:09]} 74. Qd3 {[%emt 0:00:14]} f5 {[%emt 0:00:08]} 75. Qd7 {[%emt 0:
00:12]} Qe4+ {[%emt 0:00:17]} 76. Kh2 {[%emt 0:00:25]} Qc2+ {[%emt 0:00:06]}
77. Kg1 {[%emt 0:00:01]} Qc1+ {[%emt 0:00:20]} 78. Kg2 {[%emt 0:00:08]} Qg5+ {
[%emt 0:00:15]} 79. Kf2 {[%emt 0:00:04]} Kh4 {[%emt 0:00:12]} 80. Qd4+ {[%emt
0:00:09]} Qg4 {[%emt 0:00:14]} 81. Qh8+ {[%emt 0:00:06]} Kg5 {[%emt 0:00:01]}
82. Qd8+ {[%emt 0:00:01]} Kg6 {[%emt 0:00:10]} 83. Qg8+ {[%emt 0:00:06]} Kf6 {
[%emt 0:00:05]} 84. Qf8+ {[%emt 0:00:30]} Ke5 {[%emt 0:00:04]} 85. Qc5+ {[%emt
0:00:02]} Ke6 {[%emt 0:00:06]} 86. Qc6+ {[%emt 0:00:17]} Kf7 {[%emt 0:00:01]}
87. Qd7+ {[%emt 0:00:00]} Kg6 {[%emt 0:00:07]} 88. Qe8+ {[%emt 0:00:04]} Kh7 {
[%emt 0:00:08]} 89. Qf7+ {[%emt 0:00:14]} Kh6 {[%emt 0:00:03]} 90. Qf8+ {[%emt
0:00:01]} Kh7 {[%emt 0:00:31]} 91. Qf7+ {[%emt 0:00:01]} Kh6 {[%emt 0:00:05]}
92. Qf6+ {[%emt 0:00:05]} Kh5 {[%emt 0:00:04]} 93. Qh8+ {[%emt 0:00:01]} Kg5 {
[%emt 0:00:04]} 94. Qg7+ {[%emt 0:00:03]} Kh4 {[%emt 0:00:13]} 95. Qh6+ {[%emt
0:00:51]} Qh5 {[%emt 0:00:01]} 96. Qf4+ {[%emt 0:00:21]} Qg4 {[%emt 0:00:03]}
97. Qh6+ {[%emt 0:00:02]} Qh5 {[%emt 0:00:00]} 1/2-1/2

[Event "16th EWICC 2015"]
[Site "Kutaisi"]
[Date "2015.06.02"]
[Round "5"]
[White "Choladze, Mariam"]
[Black "Javakhishvili, Lela"]
[Result "0-1"]
[ECO "C60"]
[WhiteElo "1989"]
[BlackElo "2472"]
[Annotator "Robot 11"]
[PlyCount "138"]
[EventDate "2015.??.??"]
[EventCountry "GEO"]
[TimeControl "900+10"]

1. e4 {[%emt 0:00:03]} e5 {[%emt 0:00:03]} 2. Nf3 {[%emt 0:00:01]} Nc6 {[%emt
0:00:03]} 3. Bb5 {[%emt 0:00:02]} g6 {[%emt 0:00:06]} 4. c3 {[%emt 0:00:39]} a6
{[%emt 0:00:06]} 5. Ba4 {[%emt 0:00:01]} d6 {[%emt 0:00:04]} 6. O-O {[%emt 0:
00:35]} Bg7 {[%emt 0:00:02]} 7. d4 {[%emt 0:00:19]} Bd7 {[%emt 0:00:02]} 8. Re1
{[%emt 0:00:32]} Nf6 {[%emt 0:00:02]} 9. Bxc6 {[%emt 0:01:33]} Bxc6 {[%emt 0:
00:09]} 10. dxe5 {[%emt 0:00:07]} dxe5 {[%emt 0:01:28]} 11. Qxd8+ {[%emt 0:00:
14]} Rxd8 {[%emt 0:00:55]} 12. Nxe5 {[%emt 0:00:03]} Bxe4 {[%emt 0:00:49]} 13.
f3 {[%emt 0:02:37]} Bxb1 {[%emt 0:00:18]} 14. Nc6+ {[%emt 0:00:20]} Be4 {[%emt
0:03:23]} 15. Nxd8 {[%emt 0:00:06]} Kxd8 {[%emt 0:00:02]} 16. fxe4 {[%emt 0:00:
06]} Kd7 {[%emt 0:00:51]} 17. Bf4 {[%emt 0:00:31]} Re8 {[%emt 0:00:30]} 18.
Rad1+ {[%emt 0:00:04]} Kc8 {[%emt 0:00:15]} 19. Bg5 {[%emt 0:00:05]} Nd7 {
[%emt 0:00:13]} 20. Re2 {[%emt 0:04:10]} h6 {[%emt 0:00:52]} 21. Red2 {[%emt 0:
01:02]} Nf6 {[%emt 0:00:07]} 22. Bxf6 {[%emt 0:00:18]} Bxf6 {[%emt 0:00:02]}
23. Rf2 {[%emt 0:00:08]} Re6 {[%emt 0:00:01]} 24. Rdf1 {[%emt 0:00:07]} Be7 {
[%emt 0:00:04]} 25. Rxf7 {[%emt 0:00:05]} Rxe4 {[%emt 0:00:01]} 26. Rg7 {[%emt
0:00:30]} Re6 {[%emt 0:01:32]} 27. Rff7 {[%emt 0:01:30]} Kd8 {[%emt 0:00:13]}
28. Kf1 {[%emt 0:00:09]} a5 {[%emt 0:00:13]} 29. g3 {[%emt 0:00:09]} a4 {[%emt
0:00:13]} 30. Rf2 {[%emt 0:00:15]} a3 {[%emt 0:00:33]} 31. bxa3 {[%emt 0:00:24]
} Bxa3 {[%emt 0:00:12]} 32. Re2 {[%emt 0:00:02]} Rf6+ {[%emt 0:01:14]} 33. Kg2
{[%emt 0:00:01]} Bc5 {[%emt 0:00:55]} 34. Rd2+ {[%emt 0:00:23]} Bd6 {[%emt 0:
00:18]} 35. Rd4 {[%emt 0:00:52]} b6 {[%emt 0:00:34]} 36. Ra4 {[%emt 0:00:39]}
Kc8 {[%emt 0:00:05]} 37. Ra8+ {[%emt 0:00:01]} Kb7 {[%emt 0:00:01]} 38. Rag8 {
[%emt 0:00:09]} Bc5 {[%emt 0:00:17]} 39. Rxg6 {[%emt 0:00:29]} Rf2+ {[%emt 0:
00:01]} 40. Kh3 {[%emt 0:00:10]} Rxa2 {[%emt 0:00:04]} 41. Rxh6 {[%emt 0:00:04]
} Bg1 {[%emt 0:00:02]} 42. Kg4 {[%emt 0:00:04]} Bxh2 {[%emt 0:00:04]} 43. Rh7 {
[%emt 0:00:35]} Bg1 {[%emt 0:01:44]} 44. Rgg7 {[%emt 0:01:10]} Ra4+ {[%emt 0:
00:01]} 45. Kh3 {[%emt 0:00:18]} Rc4 {[%emt 0:00:02]} 46. Kg2 {[%emt 0:00:01]}
Be3 {[%emt 0:00:04]} 47. g4 {[%emt 0:00:07]} Rxc3 {[%emt 0:00:08]} 48. g5 {
[%emt 0:00:08]} Bd4 {[%emt 0:00:19]} 49. Rd7 {[%emt 0:00:24]} Be5 {[%emt 0:00:
03]} 50. Rh3 {[%emt 0:00:09]} Rc4 {[%emt 0:00:26]} 51. Rh5 {[%emt 0:00:45]} Kc6
{[%emt 0:01:32]} 52. Rf7 {[%emt 0:00:10]} Kd5 {[%emt 0:00:16]} 53. Kf3 {[%emt
0:00:10]} Rc3+ {[%emt 0:00:15]} 54. Kg4 {[%emt 0:00:02]} Ke4 {[%emt 0:00:38]}
55. Rh3 {[%emt 0:00:07]} Rc1 {[%emt 0:00:12]} 56. Kh5 {[%emt 0:00:11]} b5 {
[%emt 0:00:29]} 57. g6 {[%emt 0:00:08]} Rg1 {[%emt 0:00:01]} 58. Rh4+ {[%emt 0:
00:02]} Kd5 {[%emt 0:00:11]} 59. Rg4 {[%emt 0:00:05]} Rh1+ {[%emt 0:00:22]} 60.
Kg5 {[%emt 0:00:01]} Ke6 {[%emt 0:00:06]} 61. Rxc7 {[%emt 0:00:46]} Bxc7 {
[%emt 0:00:20]} 62. g7 {[%emt 0:00:11]} Kf7 {[%emt 0:00:09]} 63. Kf5 {[%emt 0:
00:01]} Kg8 {[%emt 0:00:05]} 64. Kf6 {[%emt 0:00:03]} Rf1+ {[%emt 0:00:10]} 65.
Kg6 {[%emt 0:00:01]} Bd6 {[%emt 0:00:38]} 66. Rg5 {[%emt 0:00:16]} b4 {[%emt 0:
00:14]} 67. Rd5 {[%emt 0:00:05]} Be7 {[%emt 0:00:07]} 68. Rd7 {[%emt 0:00:07]}
Rg1+ {[%emt 0:00:08]} 69. Kh6 {[%emt 0:00:01]} Rxg7 {[%emt 0:00:12]} 0-1

[Event "16th EWICC 2015"]
[Site "Kutaisi"]
[Date "2015.06.02"]
[Round "5"]
[White "Choladze, Tea"]
[Black "Mikadze, Miranda"]
[Result "0-1"]
[ECO "B12"]
[WhiteElo "1755"]
[BlackElo "2233"]
[Annotator "Robot 11"]
[PlyCount "74"]
[EventDate "2015.??.??"]
[EventCountry "GEO"]
[TimeControl "900+10"]

1. e4 {[%emt 0:00:02]} c6 {[%emt 0:00:09]} 2. d4 {[%emt 0:00:02]} d5 {[%emt 0:
00:01]} 3. e5 {[%emt 0:00:01]} c5 {[%emt 0:00:02]} 4. c3 {[%emt 0:00:06]} Nc6 {
[%emt 0:00:13]} 5. Be3 {[%emt 0:00:06]} Bf5 {[%emt 0:02:45]} 6. Nf3 {[%emt 0:
00:24]} cxd4 {[%emt 0:00:04]} 7. Nxd4 Bg6 8. Bb5 {[%emt 0:01:09]} Rc8 {[%emt 0:
00:25]} 9. O-O {[%emt 0:00:07]} e6 {[%emt 0:00:06]} 10. Nd2 {[%emt 0:00:23]}
Nge7 {[%emt 0:00:08]} 11. Qa4 {[%emt 0:00:25]} a6 {[%emt 0:00:07]} 12. Bxc6+ {
[%emt 0:00:39]} Nxc6 {[%emt 0:00:02]} 13. Nxc6 {[%emt 0:00:15]} Rxc6 {[%emt 0:
00:01]} 14. Nb3 {[%emt 0:00:36]} b5 {[%emt 0:00:37]} 15. Qf4 {[%emt 0:00:08]}
Be7 {[%emt 0:00:08]} 16. Nd4 {[%emt 0:00:06]} Rc4 {[%emt 0:00:02]} 17. Bd2 {
[%emt 0:00:27]} O-O {[%emt 0:00:09]} 18. b3 {[%emt 0:00:02]} Rc8 {[%emt 0:00:
14]} 19. a4 {[%emt 0:00:01]} h6 {[%emt 0:00:36]} 20. Qf3 {[%emt 0:00:13]} Qb6 {
[%emt 0:00:15]} 21. axb5 {[%emt 0:00:11]} axb5 {[%emt 0:00:02]} 22. Qe2 {[%emt
0:00:06]} b4 {[%emt 0:00:59]} 23. Be3 {[%emt 0:01:44]} bxc3 {[%emt 0:01:22]}
24. Nf5 {[%emt 0:00:09]} Qd8 {[%emt 0:00:53]} 25. Nxe7+ {[%emt 0:00:20]} Qxe7 {
[%emt 0:00:02]} 26. Ra7 {[%emt 0:00:23]} Qb4 {[%emt 0:00:07]} 27. Qa2 {[%emt 0:
00:26]} Rb8 {[%emt 0:00:40]} 28. Ra3 {[%emt 0:00:23]} c2 {[%emt 0:00:29]} 29.
Qb2 {[%emt 0:00:53]} Rfc8 {[%emt 0:00:05]} 30. Qc1 {[%emt 0:00:35]} Qc3 {[%emt
0:00:35]} 31. Bd2 {[%emt 0:00:21]} Qxe5 {[%emt 0:00:53]} 32. Bf4 {[%emt 0:00:
07]} Qc3 {[%emt 0:00:02]} 33. Bxb8 {[%emt 0:00:07]} Rxb8 {[%emt 0:00:01]} 34.
Qa1 {[%emt 0:01:09]} Qb4 {[%emt 0:00:02]} 35. Rc1 {[%emt 0:00:16]} Kh7 {[%emt
0:00:32]} 36. Qb2 {[%emt 0:01:14]} d4 {[%emt 0:00:13]} 37. Ra4 {[%emt 0:00:43]}
Qxa4 {[%emt 0:00:04]} 0-1